bitfinex/quotes_ETHUSD_20250810
["timestamp","ask_amount","ask_price","bid_price","bid_amount"]
[1754796821296,2.79975387,4225.7,4225.6,1e-08]
[1754796822495,1.89325387,4225.7,4225.6,1e-08]
[1754796823374,2.79975387,4225.7,4225.6,1e-08]
[1754796824301,2.34435387,4225.7,4225.6,1e-08]
[1754796824879,2.79975387,4225.7,4225.6,1e-08]
[1754796826702,5.79975387,4225.7,4225.6,1e-08]
[1754796830396,5.34435387,4225.7,4225.6,1e-08]
[1754796831101,6.34425387,4225.7,4225.6,1e-08]
[1754796832181,1.89325387,4225.7,4225.6,1e-08]
[1754796832512,2.36145387,4225.7,4225.6,1e-08]
[1754796832715,2.83245387,4225.7,4225.6,1e-08]
[1754796838221,5.83245387,4225.7,4225.6,1e-08]
[1754796838923,1.77510591,4225.1,4225.0,1e-08]
[1754796839125,9.33250591,4225.1,4225.0,1e-08]
[1754796839336,10.27170591,4225.1,4225.0,1e-08]
[1754796840814,10.36645991,4225.1,4225.0,1e-08]
[1754796841130,1.77523196,4224.8,4224.7,1e-08]
[1754796841340,6.32963196,4224.8,4224.7,1e-08]
[1754796841641,6.79783196,4224.8,4224.7,1e-08]
[1754796842402,1.89363196,4224.8,4224.7,1e-08]
[1754796843249,1.89363196,4224.8,4224.7,0.46380001]
[1754796843825,1.89363196,4224.8,4224.7,1e-08]
[1754796844600,1.89363196,4224.8,4224.7,0.46380001]
[1754796844601,0.1184,4224.8,4224.7,0.46380001]
[1754796844800,0.1184,4224.8,4224.7,0.86190001]
[1754796845002,0.1184,4224.8,4224.7,0.46380001]
[1754796845335,0.094754,4225.1,4224.7,0.86190001]
[1754796845336,0.1184,4225.0,4224.7,0.86190001]
[1754796845501,0.1184,4225.0,4224.8,0.8619]
[1754796845701,1.77518994,4224.9,4224.8,0.8619]
[1754796846234,0.1184,4225.0,4224.8,0.8619]
[1754796846441,1.89354792,4225.0,4224.9,0.8619]
[1754796846755,0.1184,4225.0,4224.7,0.55000001]
[1754796846965,1.86989063,4225.1,4224.8,0.8619]
[1754796847141,0.094754,4225.1,4224.8,0.8619]
[1754796847954,0.094754,4225.1,4224.9,0.8619]
[1754796848466,0.094754,4225.1,4224.9,0.4638]
[1754796848612,0.094754,4225.1,4225.0,0.8619]
[1754796849114,0.094754,4225.1,4225.0,1.4119]
[1754796849912,0.094754,4225.1,4225.0,3.18704792]
[1754796850347,0.094754,4225.1,4225.0,13.35530307]
[1754796850554,1.28535271,4226.2,4225.1,0.55]
[1754796850724,0.002,4226.6,4225.1,0.55]
[1754796850725,0.002,4226.6,4226.0,2.32472787]
[1754796851051,0.710235,4226.1,4225.9,0.55]
[1754796851220,0.710235,4226.1,4223.4,2.81811235]
[1754796851411,1.77472787,4226.0,4225.7,0.55]
[1754796851619,0.710235,4226.1,4225.7,0.55]
[1754796851620,2.48492879,4226.1,4225.7,0.55]
[1754796851813,2.48492879,4226.1,4225.8,0.22109606]
[1754796851814,1.77472787,4226.0,4225.8,0.22109606]
[1754796852014,1.77472787,4226.0,4225.9,0.22109606]
[1754796852015,2.71392787,4226.0,4225.9,0.22109606]
[1754796852718,1.77523196,4224.8,4224.6,0.04]
[1754796853348,1.77517888,4225.0,4224.6,0.04]
[1754796853565,0.4682,4225.6,4224.6,0.04]
[1754796853868,1.77523196,4224.8,4224.6,0.04]
[1754796854776,2.24343196,4224.8,4224.6,0.04]
[1754796855662,1.77523196,4224.8,4224.6,0.04]
[1754796856176,2.24343196,4224.8,4224.6,0.04]
[1754796856476,2.71443196,4224.8,4224.6,0.04]
[1754796856838,2.83283196,4224.8,4224.6,0.04]
[1754796859855,2.82483196,4224.8,4224.6,0.04]
[1754796860272,6.38938296,4224.8,4224.6,0.04]
[1754796860839,7.34848296,4224.8,4224.6,0.04]
[1754796861353,1.98038296,4224.8,4224.6,0.04]
[1754796861586,6.38938296,4224.8,4224.6,0.04]
[1754796862762,2.45118296,4224.8,4224.6,0.04]
[1754796863667,2.93948296,4224.8,4224.6,0.04]
[1754796864637,1.98038296,4224.8,4224.7,0.22108905]
[1754796873360,2.45118296,4224.8,4224.7,0.22108905]
[1754796874074,2.93948296,4224.8,4224.7,0.22108905]
[1754796876282,4.172251,4224.8,4223.6,0.04]
[1754796876541,0.1184,4223.7,4223.6,0.04]
[1754796876781,6.28009429,4223.7,4223.6,0.04]
[1754796876983,1.77569429,4223.7,4223.6,0.04]
[1754796877488,4.385,4224.0,4223.6,0.04]
[1754796877783,1.77545044,4224.3,4223.6,0.8906]
[1754796878079,1.77535516,4224.6,4223.9,0.55]
[1754796878283,1.86998774,4224.8,4223.7,0.4525]
[1754796878284,1.77548577,4224.2,4223.7,0.4525]
[1754796878854,1.77544981,4224.3,4223.7,0.4525]
[1754796879480,1.77553667,4224.1,4223.7,0.4525]
[1754796880157,1.77549506,4224.2,4223.7,0.4525]
[1754796880654,1.77549506,4224.2,4223.6,0.04]
[1754796880854,1.77544973,4224.3,4223.6,0.04]
[1754796881255,0.710637,4224.1,4223.6,1.81570905]
[1754796881477,0.710637,4224.1,4223.7,0.4525]
[1754796881676,0.710637,4224.1,4223.9,0.55]
[1754796881880,0.710637,4224.1,4224.0,2.77806818]
[1754796882094,0.710637,4224.1,4224.0,1.4006]
[1754796882386,0.710637,4224.1,4224.0,3.17616818]
[1754796882955,0.710637,4224.1,4224.0,1.4006]
[1754796884777,0.710637,4224.1,4224.0,3.17616818]
[1754796884981,0.710637,4224.1,4224.0,1.4006]
[1754796885663,0.710637,4224.1,4224.0,3.17616818]
[1754796885992,0.710637,4224.1,4224.0,1.4006]
[1754796886686,6.15212875,4225.1,4224.3,0.55]
[1754796886893,0.710527,4224.5,4224.4,1.77540005]
[1754796887080,0.1184,4225.1,4224.5,0.55]
[1754796887483,1.89353595,4225.1,4224.4,0.1184]
[1754796887660,1.77502962,4225.3,4224.1,6.1445215]
[1754796887661,1.77526446,4224.8,4224.1,6.1445215]
[1754796887992,2.48559281,4225.0,4224.2,0.55]
[1754796888294,2.92922628,4225.0,4224.3,0.22155461]
[1754796888486,0.1184,4224.7,4224.4,0.22155461]
[1754796888807,0.1184,4224.7,4224.5,0.22155461]
[1754796888808,0.562,4224.7,4224.5,0.22155461]
[1754796889088,1.89367398,4224.7,4224.6,0.22155461]
[1754796889291,2.37957398,4224.7,4224.6,0.22155461]
[1754796889794,2.82317398,4224.7,4224.6,0.22155461]
[1754796890265,2.33727398,4224.7,4224.6,0.22155461]
[1754796891617,1.89367398,4224.7,4224.6,0.22155461]
[1754796891967,2.33727398,4224.7,4224.6,0.22155461]
[1754796892176,1.89367398,4224.7,4224.6,0.22155461]
[1754796892583,0.1184,4224.7,4224.6,0.22155461]
[1754796893480,1.89367398,4224.7,4224.6,0.22155461]
[1754796894690,0.710443,4225.0,4224.7,0.55]
[1754796894891,0.710443,4225.0,4224.9,0.55]
[1754796895104,0.710443,4225.0,4224.9,0.77155461]
[1754796895270,0.002,4225.7,4225.3,0.55]
[1754796895469,0.002,4225.7,4225.6,2.32489587]
[1754796895796,0.002,4225.7,4225.6,0.77155461]
[1754796896391,0.002,4225.7,4225.6,2.54645048]
[1754796896598,0.002,4225.7,4225.6,1.62455461]
[1754796896903,0.002,4225.7,4225.6,3.39945048]
[1754796897106,0.002,4225.7,4225.6,1.62455461]
[1754796897274,0.002,4225.7,4225.6,1.22645461]
[1754796897672,0.00039563,4225.7,4225.6,1.22645461]
[1754796898374,0.00039563,4225.7,4225.6,0.77155461]
[1754796900216,0.00039563,4225.7,4225.6,5.57011575]
[1754796900378,0.00039563,4225.7,4224.1,1e-08]
[1754796900578,0.00039563,4225.7,4222.8,2.81811235]
[1754796900579,1.77544208,4224.3,4223.1,1.49314993]
[1754796900778,10.17376036,4223.5,4220.5,0.4549]
[1754796901087,3.55,4223.3,4221.0,2.4549]
[1754796901276,4.348,4223.2,4221.0,2.4549]
[1754796901493,1.77594657,4223.1,4221.4,0.4549]
[1754796901787,1.7764626,4221.9,4221.4,0.4549]
[1754796902184,1.7764626,4221.9,4221.5,4.347]
[1754796902381,1.7764626,4221.9,4221.3,0.4549]
[1754796902582,1.77653551,4221.7,4221.0,2.0]
[1754796903091,1.77678804,4221.1,4221.0,2.0]
[1754796903290,2.22038804,4221.1,4221.0,2.0]
[1754796903685,1.77678804,4221.1,4221.0,2.0]
[1754796904122,2.22038804,4221.1,4221.0,2.0]
[1754796904582,1.77678804,4221.1,4221.0,2.0]
[1754796905025,2.22038804,4221.1,4221.0,2.0]
[1754796906080,2.22038804,4221.1,4221.0,1e-08]
[1754796908215,1.77678804,4221.1,4221.0,1e-08]
[1754796908523,0.4436,4222.1,4221.0,0.88490001]
[1754796908727,0.4436,4222.6,4221.1,0.55]
[1754796908911,0.4436,4222.6,4221.3,0.55]
[1754796909088,1.77636228,4222.2,4221.2,0.55]
[1754796909430,0.4436,4223.1,4221.4,0.55]
[1754796909800,1.77627586,4222.4,4221.5,2.23151772]
[1754796910495,0.4436,4223.1,4221.9,0.55]
[1754796910698,1.89464583,4222.4,4221.9,0.55]
[1754796910905,1.77629507,4222.3,4222.0,0.4549]
[1754796911104,0.1184,4222.4,4222.0,0.4549]
[1754796911418,0.1184,4222.4,4222.1,0.55]
[1754796911613,0.1184,4222.4,4222.1,0.4549]
[1754796911821,1.77628306,4222.3,4221.9,0.55]
[1754796911988,1.77645136,4221.9,4221.8,0.1184]
[1754796912600,0.1184,4221.9,4221.4,0.55]
[1754796912800,0.1184,4222.1,4221.8,0.4549]
[1754796913004,0.4436,4223.2,4221.6,5.32657369]
[1754796913005,0.1184,4222.3,4221.9,0.8849]
[1754796913317,0.1184,4222.3,4222.0,1.4349]
[1754796913523,1.81561216,4223.9,4222.2,0.55]
[1754796913722,1.81561216,4223.9,4222.6,0.55]
[1754796913723,0.04,4223.9,4222.6,0.55]
[1754796913914,0.04,4223.9,4222.9,0.55]
[1754796914118,0.04,4223.9,4223.3,0.55]
[1754796914318,0.04,4223.9,4223.3,3.21076247]
[1754796915100,0.04,4223.9,4223.3,7.55276247]
[1754796915299,0.04,4223.9,4223.3,3.21076247]
[1754796915614,0.04,4223.9,4223.3,7.55176247]
[1754796915941,0.04,4223.9,4223.8,2.32565225]
[1754796916242,0.04,4223.9,4223.6,4.341]
[1754796916738,0.4436,4223.8,4222.9,7.34]
[1754796916951,1.77569429,4223.7,4222.5,3.0]
[1754796917102,0.4436,4223.8,4222.4,6.11623541]
[1754796917451,1.77591924,4223.2,4222.6,3.0]
[1754796917597,1.77782922,4223.4,4222.6,3.0]
[1754796917803,0.002,4223.4,4222.7,1.7761148]
[1754796918094,0.002,4223.4,4222.2,0.43]
[1754796918095,0.4659,4223.4,4221.9,0.49]
[1754796918293,0.4659,4223.4,4222.1,1.77633089]
[1754796918294,1.77598996,4223.0,4222.1,1.77633089]
[1754796918726,0.4659,4223.4,4222.5,1.7761679]
[1754796918931,0.4659,4223.4,4221.9,0.49]
[1754796918932,1.77594107,4223.2,4222.4,0.55]
[1754796919097,0.002,4223.4,4222.4,1.06368321]
[1754796919423,0.002,4223.4,4222.5,0.55]
[1754796919638,0.002,4223.4,4222.9,0.55]
[1754796920127,0.002,4223.4,4222.6,1.77614224]
[1754796920128,0.4639,4223.3,4222.6,1.77614224]
[1754796920325,0.002,4223.4,4222.5,3.55]
[1754796920510,0.002,4223.4,4222.7,1.77611255]
[1754796920735,1.77598539,4223.1,4222.5,3.55]
[1754796920921,0.002,4223.4,4221.8,2.26648997]
[1754796920922,0.4639,4223.3,4221.8,2.26648997]
[1754796921108,0.4639,4223.3,4222.0,3.0]
[1754796921310,0.4639,4223.3,4222.2,3.0]
[1754796921512,0.002,4223.4,4222.3,4.886]
[1754796921742,0.042,4223.9,4223.8,1.77565225]
[1754796922028,0.042,4223.9,4223.8,9.66165225]
[1754796922401,0.042,4223.9,4223.8,10.15165225]
[1754796922602,0.042,4223.9,4223.8,10.59005225]
[1754796923326,0.042,4223.9,4223.8,10.58905225]
[1754796923628,0.042,4223.9,4223.8,10.70745225]
[1754796924138,0.042,4223.9,4223.8,6.37245225]
[1754796924314,0.042,4223.9,4223.8,10.70645225]
[1754796926310,0.042,4223.9,4223.8,10.26705225]
[1754796926931,0.042,4223.9,4223.8,10.26605225]
[1754796927332,0.042,4223.9,4223.8,5.93405225]
[1754796927523,0.042,4223.9,4223.8,10.26605225]
[1754796927732,0.042,4223.9,4223.8,9.77605225]
[1754796927938,0.042,4223.9,4223.8,10.26605225]
[1754796928304,0.042,4223.9,4223.8,5.44405225]
[1754796928510,0.042,4223.9,4223.8,9.77605225]
[1754796929322,0.042,4223.9,4223.8,10.26605225]
[1754796929804,0.042,4223.9,4223.8,9.77605225]
[1754796930008,0.042,4223.9,4223.8,4.4494]
[1754796930349,0.042,4223.9,4223.8,0.1184]
[1754796930659,0.5059,4223.9,4223.8,4.33]
[1754796930953,2.39991021,4223.9,4223.8,4.33]
[1754796931152,0.6243,4223.9,4223.6,4.329]
[1754796931320,0.1184,4223.7,4223.1,1.77594657]
[1754796931635,0.1184,4223.7,4223.3,3.0]
[1754796932212,0.1184,4223.7,4223.4,1.77582042]
[1754796932740,0.042,4223.9,4223.6,0.55]
[1754796932921,0.042,4223.9,4223.8,0.55]
[1754796933122,0.042,4223.9,4223.7,0.55]
[1754796933333,0.042,4223.9,4223.8,4.328]
[1754796933844,0.1604,4223.9,4223.8,4.328]
[1754796934657,0.1604,4223.9,4223.8,9.65365225]
[1754796934814,0.042,4223.9,4223.8,10.58205225]
[1754796936650,0.042,4223.9,4223.8,10.14365225]
[1754796937162,0.042,4223.9,4223.8,10.58205225]
[1754796938640,0.042,4223.9,4223.8,10.14365225]
[1754796939358,0.042,4223.9,4223.8,10.58205225]
[1754796939722,0.042,4223.9,4223.8,10.14365225]
[1754796941270,0.042,4223.9,4223.8,3.55]
[1754796941574,0.042,4223.9,4223.8,7.873]
[1754796941865,0.042,4223.9,4223.8,10.57705225]
[1754796942763,0.042,4223.9,4223.8,9.64865225]
[1754796943560,0.042,4223.9,4223.8,10.13865225]
[1754796945067,0.042,4223.9,4223.8,3.0]
[1754796945393,0.042,4223.9,4223.8,7.87]
[1754796945529,0.5059,4223.9,4223.8,4.319]
[1754796946061,0.5059,4223.9,4223.0,1.8943766]
[1754796946229,0.1184,4223.6,4223.1,4.319]
[1754796946429,0.4639,4223.5,4223.0,0.1184]
[1754796946758,0.1184,4223.1,4222.4,0.1184]
[1754796946938,1.89435117,4223.1,4222.6,4.318]
[1754796947126,0.4475,4223.0,4222.6,4.318]
[1754796947523,0.4475,4222.9,4222.6,4.318]
[1754796947723,0.94819395,4223.8,4223.1,0.55]
[1754796948031,0.1184,4223.5,4223.2,4.317]
[1754796948352,0.1184,4223.5,4223.3,4.317]
[1754796948865,0.1184,4223.5,4223.3,6.09282366]
[1754796949358,0.1184,4223.5,4223.3,4.317]
[1754796949860,0.042,4223.9,4223.6,0.55]
[1754796950058,0.042,4223.9,4223.7,4.317]
[1754796950786,0.042,4223.9,4223.8,2.32565225]
[1754796950935,0.042,4223.9,4223.8,2.77725225]
[1754796951133,0.042,4223.9,4223.8,3.37055225]
[1754796952960,0.042,4223.9,4223.8,7.68455225]
[1754796953159,0.042,4223.9,4223.8,7.20965225]
[1754796953762,0.042,4223.9,4223.8,7.68455225]
[1754796955576,0.042,4223.9,4223.8,2.89565225]
[1754796955877,0.042,4223.9,4223.8,10.20665225]
[1754796956904,0.042,4223.9,4223.8,3.6684]
[1754796957102,2.26511669,4223.9,4223.4,0.1184]
[1754796957261,1.77570695,4223.7,4223.4,0.1184]
[1754796957469,1.77570695,4223.7,4223.5,4.309]
[1754796957666,0.1184,4223.6,4223.0,0.1184]
[1754796957975,0.1604,4223.9,4223.4,2.32578311]
[1754796958176,0.1604,4223.9,4223.6,0.55]
[1754796959563,0.042,4223.9,4223.8,0.55]
[1754796959765,0.042,4223.9,4223.8,4.857]
[1754796960408,0.042,4223.9,4223.8,7.08425225]
[1754796961888,0.042,4223.9,4223.8,10.55915225]
[1754796962769,1e-08,4223.9,4223.8,10.67755225]
[1754796962968,1e-08,4223.9,4223.8,6.37055225]
[1754796963173,1e-08,4223.9,4223.8,10.67455225]
[1754796963493,1e-08,4223.9,4223.8,10.89584036]
[1754796964101,1e-08,4223.9,4223.8,6.11694036]
[1754796964304,1e-08,4223.9,4223.8,9.41834036]
[1754796964469,1e-08,4223.9,4223.8,10.34484036]
[1754796964669,1e-08,4223.9,4223.8,10.89484036]
[1754796965109,1e-08,4223.9,4223.8,6.11694036]
[1754796965409,1e-08,4223.9,4223.8,10.41994036]
[1754796966277,1e-08,4223.9,4223.8,10.89484036]
[1754796966478,1e-08,4223.9,4223.8,10.89284036]
[1754796967996,1e-08,4223.9,4223.8,6.59184036]
[1754796968318,1e-08,4223.9,4223.8,10.89084036]
[1754796969228,1e-08,4223.9,4223.8,10.88984036]
[1754796971317,1e-08,4224.3,4224.2,2.32548411]
[1754796971511,0.002,4224.4,4224.2,2.32548411]
[1754796971512,1e-08,4224.4,4224.3,5.32544208]
[1754796971717,1e-08,4224.4,4224.3,5.54673019]
[1754796972021,1e-08,4224.4,4224.3,6.47323019]
[1754796974726,1e-08,4224.4,4224.3,10.29033019]
[1754796975289,1e-08,4224.4,4224.3,1.99673019]
[1754796975523,0.44750001,4224.4,4224.3,6.28773019]
[1754796975899,1e-08,4224.4,4224.3,6.83773019]
[1754796976109,1e-08,4224.4,4224.3,6.28773019]
[1754796976301,1e-08,4224.4,4224.3,9.28773019]
[1754796976690,1e-08,4224.4,4224.3,9.83773019]
[1754796977311,0.47250001,4224.4,4224.3,9.83773019]
[1754796977969,0.47250001,4224.4,4224.3,9.83707034]
[1754796978224,0.47250001,4224.4,4224.3,9.83507034]
[1754796978731,1e-08,4224.4,4224.3,9.83507034]
[1754796980030,1e-08,4224.4,4224.3,9.83407034]
[1754796980596,1e-08,4224.4,4224.3,10.44947034]
[1754796981707,1e-08,4224.4,4224.3,6.16147034]
[1754796981906,0.47250001,4224.4,4224.3,5.66447034]
[1754796982143,0.47250001,4224.4,4224.3,9.94947034]
[1754796982438,0.47250001,4224.4,4224.3,5.66447034]
[1754796982747,0.92820001,4224.4,4224.3,4.50462826]
[1754796983257,1e-08,4224.4,4224.3,9.94847034]
[1754796983438,0.47250001,4224.4,4224.3,8.17402826]
[1754796983615,0.92820001,4224.4,4224.3,7.50462826]
[1754796983817,0.92820001,4224.4,4224.3,8.05462826]
[1754796984031,0.92820001,4224.4,4224.3,7.50462826]
[1754796984623,0.92820001,4224.4,4224.3,8.05462826]
[1754796986128,0.92820001,4224.4,4224.3,3.77162826]
[1754796986324,0.92820001,4224.4,4224.3,8.05262826]
[1754796986648,1e-08,4224.4,4224.3,9.82807034]
[1754796986816,1e-08,4224.4,4224.3,5.54707034]
[1754796987015,0.47250001,4224.4,4224.3,9.82707034]
[1754796987243,1e-08,4224.4,4224.3,9.82707034]
[1754796987551,1e-08,4224.4,4224.3,10.32407034]
[1754796988116,1e-08,4224.4,4224.3,9.82707034]
[1754796988738,0.002,4224.8,4224.7,2.32527398]
[1754796988947,0.002,4224.8,4224.7,9.82390224]
[1754796989317,0.002,4224.8,4224.7,10.32090224]
[1754796989660,0.002,4225.2,4225.1,2.32510591]
[1754796989871,0.002,4225.2,4225.1,9.84640224]
[1754796990163,0.002,4225.2,4225.1,9.82273417]
[1754796990832,0.002,4225.2,4225.1,10.31973417]
[1754796991229,0.002,4225.2,4225.1,20.9366493]
[1754796992557,0.002,4225.2,4225.1,20.4830493]
[1754796992979,0.002,4225.2,4225.1,5.54573417]
[1754796993122,0.002,4225.2,4225.1,9.82073417]
[1754796993825,0.002,4225.2,4225.1,10.77133417]
[1754796995024,0.002,4225.2,4225.1,10.31773417]
[1754796995229,0.002,4225.2,4225.1,5.54573417]
[1754796995433,0.002,4225.2,4225.1,9.81773417]
[1754796995658,0.002,4225.2,4225.1,9.81823613]
[1754796996251,0.002,4225.2,4225.1,6.19485133]
[1754796996553,0.002,4225.2,4225.1,11.62111274]
[1754796996762,0.4745,4225.2,4224.6,0.55]
[1754796997070,0.4745,4225.2,4224.8,0.55]
[1754796997376,0.002,4225.2,4225.1,0.1184]
[1754796997571,0.002,4225.2,4225.1,4.268]
[1754796997769,0.002,4225.2,4225.1,4.818]
[1754796998057,0.4745,4225.2,4225.1,4.818]
[1754796998259,0.4745,4225.2,4225.1,6.59310591]
[1754796998664,0.002,4225.2,4225.1,6.59310591]
[1754796998836,0.002,4225.2,4225.1,17.25342104]
[1754796999549,0.002,4225.2,4225.1,20.25342104]
[1754796999757,0.002,4225.2,4225.1,19.75642104]
[1754796999928,0.002,4225.2,4225.1,9.71154376]
[1754797000130,0.002,4225.2,4225.1,16.43902104]
[1754797000329,0.002,4225.2,4225.1,20.70402104]
[1754797002727,0.002,4225.2,4225.1,26.38302104]
[1754797002931,0.00039563,4225.7,4225.6,2.32489587]
[1754797003132,0.00039563,4225.7,4225.6,9.58689587]
[1754797003437,0.00039563,4225.7,4225.6,10.98642962]
[1754797003964,0.00039563,4225.7,4225.6,10.53182962]
[1754797004160,0.00039563,4225.7,4225.6,10.20129587]
[1754797005778,0.00039563,4225.7,4225.6,4.89329587]
[1754797005926,0.00039563,4225.7,4225.6,9.15129587]
[1754797006131,0.00039563,4225.7,4225.6,9.70129587]
[1754797006359,0.00039563,4225.7,4225.6,10.19829587]
[1754797006527,0.00039563,4225.7,4225.6,9.70129587]
[1754797007850,0.00039563,4225.7,4225.6,10.38990498]
[1754797008035,0.00039563,4225.7,4225.6,10.86450498]
[1754797008229,0.00039563,4225.7,4225.6,11.26997275]
[1754797008731,0.00039563,4225.7,4225.6,11.4908122]
[1754797009365,0.00039563,4225.7,4225.6,11.08534443]
[1754797009569,0.00039563,4225.7,4225.6,3.88923945]
[1754797009770,0.00039563,4225.7,4225.6,8.14423945]
[1754797009972,0.00039563,4225.7,4225.6,3.88923945]
[1754797010142,0.00039563,4225.7,4225.6,7.59323945]
[1754797010143,0.44359563,4225.7,4225.6,7.59323945]
[1754797010643,0.00039563,4225.7,4225.6,1.54960446]
[1754797010843,0.44359563,4225.7,4225.6,5.85865609]
[1754797011448,0.44359563,4225.7,4225.6,1.60565609]
[1754797011648,0.44359563,4225.7,4225.6,5.85765609]
[1754797012875,0.44359563,4225.7,4225.6,6.457267]
[1754797012876,0.00039563,4225.7,4225.6,6.457267]
[1754797013240,0.00039563,4225.7,4225.6,5.85765609]
[1754797014072,0.00039563,4225.7,4225.6,6.457267]
[1754797015689,0.00039563,4225.7,4225.6,9.457267]
[1754797016092,0.00039563,4225.7,4225.6,9.931867]
[1754797016594,0.00039563,4225.7,4225.6,9.33225609]
[1754797017106,0.00039563,4225.7,4225.6,5.08025609]
[1754797017401,0.00039563,4225.7,4225.6,18.18015458]
[1754797017402,0.44359563,4225.7,4225.6,18.18015458]
[1754797017973,0.00039563,4225.7,4225.6,18.18015458]
[1754797018198,0.00039563,4225.7,4225.6,13.93415458]
[1754797018407,0.00039563,4225.7,4225.6,18.17915458]
[1754797018582,2.2184495,4225.7,4225.6,18.17815458]
[1754797018783,0.00039563,4225.7,4225.6,18.17815458]
[1754797019084,0.042,4225.9,4225.7,3.55]
[1754797019403,0.002,4226.1,4225.9,3.55]
[1754797019609,0.002,4226.1,4226.0,8.01428582]
[1754797020109,0.4452,4226.1,4226.0,8.01328582]
[1754797020573,1.77668588,4226.1,4226.0,3.77128582]
[1754797020778,0.4452,4226.1,4224.1,10.63791513]
[1754797021074,1.77518994,4224.9,4224.1,0.4746]
[1754797021279,1.77518994,4224.9,4224.8,4.242]
[1754797021478,2.21838994,4224.9,4224.8,0.001]
[1754797023061,2.21838994,4224.9,4224.8,1e-08]
[1754797023313,2.21838994,4224.9,4224.0,0.001]
[1754797023314,1.77523196,4224.8,4224.3,1e-08]
[1754797023514,2.21843196,4224.8,4224.3,1e-08]
[1754797023712,2.21843196,4224.8,4224.0,0.001]
[1754797023713,1.77540005,4224.4,4224.0,1e-08]
[1754797023921,1.77540005,4224.4,4223.9,0.001]
[1754797023922,1.77552614,4224.1,4223.9,0.001]
[1754797024118,1.77590452,4223.2,4222.6,0.04]
[1754797024283,1.77594657,4223.1,4222.7,0.001]
[1754797024483,2.21914657,4223.1,4222.7,0.001]
[1754797024811,1.77598863,4223.0,4222.9,1e-08]
[1754797024980,2.21918863,4223.0,4222.9,1e-08]
[1754797027183,2.21918863,4223.0,4221.6,0.04]
[1754797027184,1.77653551,4221.7,4221.6,0.04]
[1754797027511,1.89493551,4221.7,4221.6,0.04]
[1754797027711,1.77678804,4221.1,4219.8,0.4746]
[1754797027880,1.89518804,4221.1,4220.1,4.3534]
[1754797028080,2.33838804,4221.1,4220.1,4.3534]
[1754797028514,2.33838804,4221.1,4220.1,0.1184]
[1754797029312,2.33838804,4221.1,4220.2,4.234]
[1754797030520,0.1184,4221.1,4220.7,0.55]
[1754797030742,2.40439326,4223.5,4220.3,3.49829499]
[1754797030743,0.1184,4221.6,4221.0,4.48080001]
[1754797030942,1.77656796,4221.7,4221.4,0.1184]
[1754797031144,1.77607274,4222.8,4221.0,4.00620001]
[1754797031145,0.55,4222.8,4221.5,1.0246]
[1754797031325,0.1184,4222.1,4221.7,0.55]
[1754797031516,1.89476889,4222.1,4221.8,4.7056]
[1754797031717,1.77640928,4222.0,4221.9,0.4746]
[1754797031917,1.77640928,4222.0,4221.9,4.232]
[1754797032313,1.89467151,4222.4,4221.9,4.232]
[1754797032546,1.77636721,4222.1,4222.0,1.0246]
[1754797032753,1.77636721,4222.1,4221.9,4.232]
[1754797032754,1.77640928,4222.0,4221.8,0.1184]
[1754797032922,1.77645136,4221.9,4221.8,0.1184]
[1754797033117,2.21965136,4221.9,4221.8,0.1184]
[1754797033321,1.77675644,4221.2,4220.9,0.55]
[1754797033523,1.77675644,4221.2,4221.1,0.55]
[1754797033716,0.1184,4221.4,4221.1,0.76855379]
[1754797033921,0.1184,4221.4,4221.1,0.4746]
[1754797034124,1.89507013,4221.4,4221.1,0.4746]
[1754797034543,1.77670529,4221.3,4221.1,0.4746]
[1754797034767,0.1184,4221.4,4221.1,0.4746]
[1754797034965,0.1184,4221.4,4221.0,1e-08]
[1754797034966,0.4432,4222.4,4221.3,0.55]
[1754797035137,2.21948306,4222.3,4221.2,4.228]
[1754797035470,0.1184,4221.4,4221.2,4.228]
[1754797035765,0.9932,4222.2,4221.3,1.24310958]
[1754797035933,0.1184,4221.7,4221.3,1.0246]
[1754797036263,0.1184,4221.7,4221.4,0.6930951]
[1754797036423,0.1184,4221.7,4221.4,0.4746]
[1754797036624,0.1184,4221.7,4221.5,0.4746]
[1754797036861,0.711016,4222.5,4221.6,0.76849506]
[1754797037061,0.1184,4222.4,4221.8,0.55]
[1754797037242,0.1184,4222.6,4222.0,0.6684]
[1754797037424,0.1184,4222.6,4222.3,2.32624477]
[1754797037621,0.1184,4222.6,4222.4,0.69001744]
[1754797037943,0.1184,4222.6,4222.5,4.226]
[1754797038167,0.1184,4222.6,4222.5,4.6975]
[1754797038367,0.1184,4222.6,4222.5,4.226]
[1754797038705,0.1184,4222.6,4222.5,7.69068977]
[1754797039189,0.1184,4222.6,4222.5,1.68849084]
[1754797039410,0.4552,4222.9,4222.5,4.44359084]
[1754797039694,1.77594681,4223.1,4222.6,0.69009084]
[1754797039848,0.1184,4222.9,4222.7,0.21859084]
[1754797040704,0.1184,4222.9,4222.6,0.55]
[1754797040866,0.1184,4222.9,4222.7,0.21880569]
[1754797041067,0.1184,4222.9,4222.6,0.55]
[1754797041293,0.1184,4222.9,4222.7,0.21880657]
[1754797041466,0.1184,4222.9,4222.8,0.21880657]
[1754797041970,0.1184,4222.9,4222.8,0.76880657]
[1754797042168,0.1184,4223.1,4222.8,0.21880657]
[1754797042390,0.1184,4223.1,4222.9,0.21880657]
[1754797042690,2.23056761,4224.5,4223.7,1.77566374]
[1754797042901,0.1184,4224.1,4223.8,5.46030657]
[1754797043202,0.04,4224.9,4223.8,18.62094667]
[1754797043410,0.04,4224.9,4224.0,0.55]
[1754797043562,0.04,4224.9,4224.8,2.32523196]
[1754797043762,0.04,4224.9,4224.8,6.76303853]
[1754797043996,0.04,4224.9,4224.8,7.68293853]
[1754797044194,0.04,4224.9,4224.8,5.45830657]